bitfinex/quotes_BTCUSD_20251114
["timestamp","ask_amount","ask_price","bid_price","bid_amount"]
[1763128133042,0.01,94830.0,94829.0,0.04341874]
[1763128133372,0.00012995,94830.0,94828.0,0.001]
[1763128133510,0.00012995,94830.0,94820.0,0.07996686]
[1763128133511,0.01667028,94829.0,94820.0,0.07996686]
[1763128133703,0.01,94820.0,94797.0,0.3798718]
[1763128133945,0.01667028,94819.0,94810.0,0.58821788]
[1763128134964,0.01667028,94819.0,94811.0,0.04341874]
[1763128135163,0.00012995,94830.0,94810.0,0.58821788]
[1763128135164,0.01661345,94818.0,94810.0,0.55263662]
[1763128135369,0.01,94820.0,94810.0,0.55263662]
[1763128135370,0.01,94820.0,94810.0,0.001]
[1763128135584,0.01661345,94819.0,94810.0,0.001]
[1763128135742,0.0157235,94818.0,94810.0,0.001]
[1763128135955,0.01,94820.0,94810.0,0.001]
[1763128136176,0.01,94820.0,94800.0,0.58821788]
[1763128136177,0.01,94810.0,94800.0,0.58821788]
[1763128136514,0.0157235,94809.0,94800.0,0.58821788]
[1763128136807,0.01,94810.0,94808.0,0.21095266]
[1763128137014,0.01,94810.0,94800.0,0.04944827]
[1763128137015,0.01,94810.0,94804.0,0.21095974]
[1763128137179,0.0167958,94809.0,94804.0,0.21096042]
[1763128137582,0.0167958,94809.0,94804.0,0.21096048]
[1763128137787,0.0167958,94809.0,94801.0,0.21096823]
[1763128137992,0.0167958,94809.0,94803.0,0.21096261]
[1763128138351,0.0167958,94809.0,94804.0,0.2109607]
[1763128138786,0.0167958,94809.0,94808.0,0.04341874]
[1763128138984,0.01,94820.0,94813.0,0.2109402]
[1763128139170,0.01658235,94819.0,94815.0,0.21093599]
[1763128139376,0.01658235,94819.0,94818.0,0.21093041]
[1763128140179,0.01658235,94819.0,94818.0,0.29530466]
[1763128140589,0.00012995,94830.0,94828.0,0.21090734]
[1763128140785,0.00999999,94860.0,94828.0,0.21090734]
[1763128140786,0.01584016,94829.0,94828.0,0.21090734]
[1763128141086,0.02999998,94870.0,94842.0,0.21087622]
[1763128141283,0.01,94850.0,94845.0,0.21086885]
[1763128141581,0.01,94850.0,94840.0,0.59876195]
[1763128141789,0.01650802,94849.0,94848.0,0.21086369]
[1763128142435,0.01650802,94849.0,94848.0,0.16386369]
[1763128142648,0.01650802,94849.0,94848.0,0.20728243]
[1763128143093,0.00013687,94870.0,94864.0,0.21082646]
[1763128143094,0.01013687,94870.0,94864.0,0.21082646]
[1763128143294,0.01013687,94870.0,94868.0,0.2108173]
[1763128143540,0.01013687,94870.0,94861.0,0.04341874]
[1763128143762,0.01638789,94869.0,94868.0,0.2108175]
[1763128143966,0.01573858,94869.0,94868.0,0.2108175]
[1763128144637,0.01573858,94869.0,94868.0,0.57723624]
[1763128145627,0.01573858,94869.0,94868.0,0.57823624]
[1763128145831,0.01573858,94869.0,94868.0,0.68090562]
[1763128146035,0.00013687,94870.0,94869.0,0.36641874]
[1763128146587,0.01,94900.0,94890.0,0.01053851]
[1763128146808,0.01012025,94900.0,94881.0,0.04341874]
[1763128147017,0.01602914,94899.0,94890.0,0.70079174]
[1763128147230,0.01602914,94898.0,94891.0,0.07007917]
[1763128147507,0.01012025,94900.0,94891.0,0.07007917]
[1763128147725,0.01012025,94900.0,94890.0,0.70079174]
[1763128147941,0.01142795,94899.0,94890.0,0.70079174]
[1763128148153,0.01142795,94898.0,94890.0,0.70079174]
[1763128148369,0.01012025,94900.0,94890.0,0.91155988]
[1763128148581,0.01142795,94897.0,94895.0,0.21075725]
[1763128148792,0.01012025,94900.0,94898.0,0.21075238]
[1763128149025,0.01137587,94899.0,94898.0,0.21075238]
[1763128149934,0.01012025,94900.0,94898.0,0.21075238]
[1763128150132,0.01108937,94899.0,94898.0,0.18775238]
[1763128151785,0.01108937,94899.0,94898.0,0.001]
[1763128152213,0.01108937,94899.0,94898.0,0.002]
[1763128152543,0.01108937,94899.0,94898.0,0.001]
[1763128152752,0.01108937,94899.0,94897.0,0.21075395]
[1763128152950,0.01108937,94899.0,94898.0,0.07459447]
[1763128153512,0.01108937,94899.0,94898.0,0.11801321]
[1763128153963,0.01108937,94899.0,94898.0,0.001]
[1763128154167,0.01108937,94899.0,94898.0,0.002]
[1763128154318,0.01108937,94899.0,94898.0,0.001]
[1763128154487,0.05981937,94899.0,94898.0,0.001]
[1763128154688,0.01108937,94899.0,94898.0,0.001]
[1763128155019,0.01,94880.0,94871.0,0.21081257]
[1763128155230,0.01082897,94879.0,94870.0,0.3609366]
[1763128155429,0.01082897,94879.0,94870.0,0.38648953]
[1763128155818,0.01082897,94879.0,94877.0,0.21079876]
[1763128156028,0.01082897,94879.0,94878.0,0.04341874]
[1763128156437,0.01082897,94879.0,94875.0,0.21079904]
[1763128156438,0.01082897,94879.0,94875.0,0.04341874]
[1763128156638,0.01082897,94879.0,94875.0,0.25422086]
[1763128156847,0.01082897,94879.0,94870.0,0.32410427]
[1763128157143,0.01082897,94879.0,94870.0,0.11328985]
[1763128157338,0.01082897,94879.0,94870.0,0.04028985]
[1763128157552,0.01082897,94879.0,94870.0,0.002]
[1763128158022,0.01082897,94879.0,94877.0,0.21079866]
[1763128158269,0.02012024,94900.0,94885.0,0.21078107]
[1763128158489,0.02012024,94900.0,94890.0,0.35039587]
[1763128158490,0.01119559,94899.0,94890.0,0.35039587]
[1763128158693,0.01119559,94899.0,94891.0,0.21076776]
[1763128158905,0.01119559,94899.0,94890.0,0.35039587]
[1763128160023,0.01119559,94899.0,94889.0,0.35039587]
[1763128160230,0.01119559,94899.0,94889.0,0.75690877]
[1763128160455,0.01119559,94899.0,94877.0,0.002]
[1763128160670,0.01119559,94899.0,94870.0,0.35039587]
[1763128160671,0.04873,94898.0,94870.0,0.35039587]
[1763128160884,0.01999998,94890.0,94870.0,0.35039587]
[1763128161105,0.00999999,94880.0,94870.0,0.35039587]
[1763128161330,0.00999999,94890.0,94870.0,0.35039587]
[1763128161331,0.01142152,94889.0,94870.0,0.35039587]
[1763128161563,0.323,94898.0,94889.0,0.001]
[1763128161767,0.323,94898.0,94879.0,0.35039587]
[1763128161768,0.01150575,94897.0,94879.0,0.35039587]
[1763128161981,0.02012023,94900.0,94879.0,0.35039587]
[1763128162198,0.001,94890.0,94880.0,0.03503959]
[1763128162390,0.01150575,94899.0,94880.0,0.03503959]
[1763128162645,0.01150575,94899.0,94870.0,0.35039587]
[1763128162859,0.01,94880.0,94870.0,0.35039587]
[1763128163062,0.01999998,94880.0,94850.0,0.35039587]
[1763128163248,0.01,94860.0,94850.0,0.35039587]
[1763128163480,0.01999998,94870.0,94820.0,0.01054629]
[1763128163677,0.00999999,94860.0,94850.0,0.35039587]
[1763128163886,0.01135858,94869.0,94850.0,0.35039587]
[1763128164095,0.00999999,94860.0,94850.0,0.35039587]
[1763128164240,0.01,94860.0,94850.0,0.35039587]
[1763128164444,0.01135858,94859.0,94850.0,0.00013687]
[1763128165274,0.01931579,94858.0,94850.0,0.00013687]
[1763128165477,0.06133,94851.0,94850.0,0.00013687]
[1763128165829,0.09215112,94851.0,94850.0,0.00013687]
[1763128166035,0.45856986,94851.0,94850.0,0.00013687]
[1763128166458,0.35382112,94851.0,94850.0,0.00013687]
[1763128166833,0.33450533,94851.0,94850.0,0.00013687]
[1763128167394,0.33650533,94851.0,94850.0,0.00013687]
[1763128167593,0.33750533,94851.0,94850.0,0.00013687]
[1763128168017,0.33450533,94851.0,94850.0,0.00013687]
[1763128168194,0.33550533,94851.0,94850.0,0.00013687]
[1763128168393,0.33650533,94851.0,94850.0,0.00013687]
[1763128168618,0.33550533,94851.0,94850.0,0.00013687]
[1763128169599,0.33450533,94851.0,94850.0,0.00013687]
[1763128169835,0.33550533,94851.0,94850.0,0.00013687]
[1763128170032,0.36905586,94851.0,94850.0,0.00013687]
[1763128170279,0.33450533,94851.0,94850.0,0.00013687]
[1763128170489,0.33650533,94851.0,94850.0,0.00013687]
[1763128170981,0.33550533,94851.0,94850.0,0.00013687]
[1763128171630,0.01,94850.0,94840.0,0.31853274]
[1763128171842,0.01116237,94849.0,94840.0,0.31853274]
[1763128172079,0.01116237,94849.0,94841.0,0.03185327]
[1763128172490,0.01116237,94849.0,94840.0,0.31853274]
[1763128173100,0.01116237,94849.0,94830.0,0.35039587]
[1763128173275,0.01,94840.0,94830.0,0.35039587]
[1763128173478,0.01,94840.0,94807.0,0.1466]
[1763128173479,0.01155759,94839.0,94807.0,0.1466]
[1763128173697,0.00999999,94830.0,94820.0,0.35039587]
[1763128173870,0.00999999,94830.0,94810.0,0.35039587]
[1763128173871,0.01,94820.0,94810.0,0.35039587]
[1763128174072,0.01999999,94820.0,94810.0,0.35039587]
[1763128174391,0.01157027,94819.0,94810.0,0.35039587]
[1763128174596,0.01157027,94819.0,94810.0,0.38544845]
[1763128174756,0.01131792,94818.0,94810.0,0.35039587]
[1763128174961,0.00999999,94820.0,94810.0,0.35039587]
[1763128175197,0.01131792,94819.0,94810.0,0.35039587]
[1763128175614,0.01999998,94830.0,94810.0,0.35039587]
[1763128175768,0.01999998,94830.0,94820.0,0.35039587]
[1763128175769,0.00999999,94830.0,94820.0,0.35039587]
[1763128175971,0.35039587,94870.0,94820.0,0.35039587]
[1763128175972,0.00999999,94840.0,94820.0,0.35039587]
[1763128176363,0.01148111,94839.0,94830.0,0.35039587]
[1763128176533,0.01148111,94839.0,94820.0,0.35039587]
[1763128176741,0.01,94830.0,94820.0,0.35039587]
[1763128176964,0.00999999,94840.0,94821.0,0.03503959]
[1763128177180,0.01791524,94868.0,94807.0,0.00012995]
[1763128177181,0.01,94810.0,94807.0,0.00012995]
[1763128177607,0.00999999,94820.0,94807.0,0.00012995]
[1763128178033,0.01999999,94820.0,94807.0,0.00012995]
[1763128178250,0.01999999,94820.0,94810.0,0.35039587]
[1763128178391,0.01,94860.0,94811.0,0.03505258]
[1763128178392,0.00999999,94830.0,94811.0,0.03505258]
[1763128178588,0.01,94820.0,94810.0,0.35039587]
[1763128178793,0.00999999,94820.0,94807.0,0.00012995]
[1763128179020,0.01999999,94820.0,94807.0,0.00012995]
[1763128179223,0.01999999,94810.0,94800.0,0.29352582]
[1763128179521,0.01999999,94810.0,94800.0,0.29357132]
[1763128179721,0.00999999,94810.0,94801.0,0.10366938]
[1763128179922,0.01999999,94810.0,94800.0,0.29357132]
[1763128180315,0.01,94810.0,94800.0,0.29357132]
[1763128180718,0.01,94860.0,94800.0,0.29357132]
[1763128180719,0.00999999,94830.0,94801.0,0.04341874]
[1763128180927,0.01,94810.0,94800.0,4.55e-05]
[1763128181138,0.01,94810.0,94801.0,0.10366938]
[1763128181479,0.01,94810.0,94800.0,0.35044137]
[1763128181689,0.01999999,94810.0,94800.0,0.35044137]
[1763128182343,0.01999999,94810.0,94800.0,4.55e-05]
[1763128182592,0.01999999,94810.0,94800.0,0.35044137]
[1763128183761,0.01999999,94810.0,94800.0,0.35144137]
[1763128183962,0.01999999,94810.0,94801.0,0.10366938]
[1763128184229,0.01999999,94810.0,94804.0,0.21096111]
[1763128184879,0.01999999,94810.0,94800.0,0.70183724]
[1763128184880,0.01999999,94810.0,94800.0,0.9128073]
[1763128185079,0.01,94810.0,94805.0,0.21095811]
[1763128185268,0.01,94810.0,94800.0,0.70183724]
[1763128185729,0.01,94810.0,94800.0,0.70083724]
[1763128185930,0.01,94810.0,94800.0,0.35044137]
[1763128186135,0.00999999,94820.0,94801.0,0.001]
[1763128186328,0.01999999,94820.0,94810.0,0.32539587]
[1763128186503,0.01999999,94810.0,94800.0,0.35044137]
[1763128186708,0.01999999,94810.0,94800.0,4.55e-05]
[1763128186944,0.01999999,94810.0,94800.0,0.0010455]
[1763128187104,0.01999999,94810.0,94800.0,0.35144137]
[1763128187512,0.01999999,94810.0,94800.0,4.55e-05]
[1763128187881,0.01999999,94810.0,94800.0,0.0001055]
[1763128188237,0.00999999,94810.0,94800.0,0.35050137]
[1763128188442,0.01999999,94810.0,94800.0,0.35050137]
[1763128188675,0.01975951,94810.0,94800.0,0.35050137]
[1763128189446,0.01975951,94810.0,94801.0,0.10366938]
[1763128189656,0.00999999,94810.0,94801.0,0.31463748]
[1763128190030,0.01975951,94810.0,94800.0,0.35050137]
[1763128190418,0.00975952,94810.0,94802.0,0.21096556]
[1763128190691,0.00975952,94810.0,94806.0,0.21095674]
[1763128190900,0.00975952,94810.0,94807.0,0.21095455]
[1763128191111,0.00975952,94810.0,94808.0,0.21095196]
[1763128191296,0.00975952,94810.0,94808.0,0.23798719]
[1763128191654,0.00975952,94810.0,94808.0,0.02703523]
[1763128191829,0.00975952,94810.0,94800.0,0.70089724]
[1763128192267,0.00975952,94810.0,94808.0,0.21095198]
[1763128192706,0.00975952,94830.0,94822.0,0.21092013]
[1763128192944,0.00975952,94830.0,94827.0,0.21090909]
[1763128193146,0.00975952,94830.0,94820.0,0.36094216]
[1763128193147,0.00975952,94840.0,94821.0,0.04341874]
[1763128193365,0.00975952,94840.0,94839.0,0.2108837]
[1763128193564,0.01975951,94850.0,94839.0,0.21088267]
[1763128193699,0.00975952,94850.0,94839.0,0.02125645]
[1763128193878,0.01975951,94850.0,94840.0,0.02125645]
[1763128194088,0.01975951,94850.0,94840.0,0.0480054]
[1763128194304,0.00975952,94850.0,94842.0,0.21087544]
[1763128194514,0.00989626,94850.0,94843.0,0.02325645]
[1763128194728,0.00989626,94850.0,94841.0,0.02674895]
[1763128194729,0.01,94850.0,94841.0,0.02674895]
[1763128195136,0.01,94850.0,94840.0,0.35039587]
[1763128195340,0.01,94850.0,94830.0,0.35039587]
[1763128195564,0.01942255,94849.0,94840.0,0.35039587]
[1763128195771,0.01392995,94870.0,94843.0,0.001]
[1763128196012,0.01653937,94867.0,94850.0,0.35039587]
[1763128196223,0.01942382,94866.0,94851.0,0.03503959]
[1763128196775,0.01942382,94866.0,94856.0,0.35039587]
[1763128197092,0.01653937,94867.0,94856.0,0.35039587]
[1763128197447,0.01653937,94867.0,94857.0,0.37692814]
[1763128197674,0.01653937,94867.0,94857.0,0.58777082]
[1763128197856,0.01653937,94867.0,94859.0,0.21083924]
[1763128198082,0.01653937,94867.0,94863.0,0.21082852]
[1763128198446,0.01653937,94867.0,94863.0,0.02811693]
[1763128198628,0.01653937,94867.0,94862.0,0.21083149]
[1763128198828,0.01653937,94867.0,94859.0,0.21083924]
[1763128199039,0.01653937,94867.0,94858.0,0.10366938]
[1763128199040,0.01653937,94867.0,94860.0,0.10366938]
[1763128199252,0.01653937,94867.0,94863.0,0.002]
[1763128199642,0.01653937,94867.0,94860.0,0.12988952]
[1763128199841,0.01653937,94867.0,94861.0,0.02622014]
[1763128200447,0.01653937,94867.0,94859.0,0.002]
[1763128200721,0.0612,94860.0,94825.0,0.02275079]
[1763128201042,0.0612,94860.0,94820.0,0.35039587]
[1763128201043,0.01938276,94859.0,94820.0,0.01054629]
[1763128201266,0.01,94850.0,94826.0,0.02763436]
[1763128201419,0.00013682,94860.0,94840.0,0.35039587]
[1763128201662,0.00013682,94860.0,94826.0,0.02763436]
[1763128201663,0.00013682,94860.0,94850.0,0.35039587]
[1763128201869,0.01013682,94860.0,94851.0,0.21085613]
[1763128202013,0.01013682,94860.0,94852.0,0.0561252]
[1763128202179,0.00113682,94860.0,94858.0,0.2108408]
[1763128202383,0.00013682,94860.0,94859.0,0.02565265]
[1763128202609,0.00013682,94860.0,94859.0,0.05445178]
[1763128202813,0.00113682,94860.0,94859.0,0.09787052]
[1763128203068,0.00013682,94860.0,94859.0,0.19760658]
[1763128203263,0.04955,94918.0,94870.0,0.01054073]
[1763128203485,0.3599761,94917.0,94871.0,0.02879913]
[1763128203692,0.05000642,94918.0,94871.0,0.02879913]
[1763128203693,0.01,94880.0,94871.0,0.02879913]
[1763128203843,0.35059587,94930.0,94872.0,0.07043518]
[1763128203844,0.04955,94924.0,94872.0,0.07043518]
[1763128204162,0.01,94890.0,94874.0,0.04341874]
[1763128204408,0.323,94915.0,94862.0,0.04341874]
[1763128204532,0.0339457,94923.0,94859.0,0.001]
[1763128204533,0.01,94860.0,94859.0,0.001]
[1763128204728,0.323,94899.0,94850.0,0.02054295]
[1763128204729,0.323,94899.0,94863.0,0.21082821]
[1763128204935,0.01,94880.0,94864.0,0.02213701]
[1763128205136,0.01,94880.0,94870.0,0.35039587]
[1763128205336,0.01,94880.0,94871.0,0.02846941]
[1763128205592,0.01,94880.0,94870.0,0.35039587]
[1763128206425,0.01,94880.0,94871.0,0.03094979]
[1763128206541,0.01,94880.0,94872.0,0.25422788]
[1763128206747,0.01,94880.0,94874.0,0.04341874]
[1763128206971,0.01,94880.0,94875.0,0.03094979]
[1763128207174,0.001,94899.0,94876.0,0.04341874]
[1763128207396,0.001,94899.0,94889.0,0.58745068]
[1763128207608,0.001,94899.0,94890.0,0.03094979]
[1763128207797,0.01,94900.0,94891.0,0.08291835]
[1763128208004,0.01,94900.0,94892.0,0.03055112]
[1763128209224,0.00013687,94900.0,94892.0,0.03055112]
[1763128209403,0.01013687,94900.0,94892.0,0.03055112]
[1763128209598,0.11834279,94899.0,94892.0,0.03055112]
[1763128209947,0.13487449,94899.0,94892.0,0.03055112]
[1763128210083,0.11834279,94898.0,94892.0,0.03055112]
[1763128211004,0.01,94880.0,94860.0,0.04341874]
[1763128211207,0.01,94880.0,94870.0,0.58745068]
[1763128211208,0.12376216,94879.0,94870.0,0.58745068]
[1763128211618,0.01,94860.0,94831.0,0.21089936]
[1763128211919,0.01,94860.0,94830.0,0.01054518]
[1763128211920,0.12423475,94859.0,94832.0,0.03831129]
[1763128212154,0.12423475,94859.0,94807.0,0.42190855]
[1763128212155,0.12423475,94859.0,94810.0,0.00999999]
[1763128212353,0.04883,94874.0,94797.0,0.10479654]
[1763128212354,0.01,94840.0,94830.0,0.58745068]
[1763128212567,0.01,94830.0,94800.0,6e-05]
[1763128212767,0.01,94820.0,94810.0,0.58745068]
[1763128212967,0.12423475,94819.0,94810.0,0.58745068]
[1763128213167,0.12423475,94819.0,94800.0,0.00019682]
[1763128213441,0.11780975,94819.0,94809.0,0.58745068]
[1763128213810,0.01,94810.0,94809.0,0.58745068]
[1763128213946,0.13320196,94810.0,94809.0,0.05874507]
[1763128214145,0.12320196,94810.0,94800.0,0.5876475]
[1763128214351,0.12320196,94809.0,94800.0,0.5876475]
[1763128214599,0.323,94851.0,94800.0,0.00019682]
[1763128214800,0.11491378,94808.0,94800.0,0.5876475]
[1763128215002,0.11098192,94850.0,94800.0,0.5876475]
[1763128215003,0.11491378,94807.0,94800.0,0.5876475]
[1763128215222,0.01,94810.0,94800.0,0.5086475]
[1763128215413,0.11491378,94806.0,94801.0,0.10366938]
[1763128215594,0.11708394,94805.0,94790.0,0.0004]
[1763128215803,0.01,94810.0,94796.0,52.46181042]
[1763128216031,0.11708394,94804.0,94803.0,0.2109621]
[1763128216240,0.01,94820.0,94808.0,0.21095211]
[1763128216439,0.11708394,94819.0,94813.0,0.21093992]
[1763128216762,0.12216936,94818.0,94811.0,0.21094547]
[1763128216986,0.01,94820.0,94810.0,0.58745068]
[1763128217126,0.12216936,94817.0,94810.0,0.58745068]
[1763128217319,0.30605575,94842.0,94810.0,0.58745068]
[1763128217514,0.01,94820.0,94810.0,0.58745068]
[1763128217763,0.01,94810.0,94800.0,0.58745068]
[1763128217966,0.12216936,94809.0,94800.0,0.58745068]
[1763128218226,0.12216936,94809.0,94790.0,0.0004]
[1763128219407,0.323,94808.0,94790.0,0.58785068]
[1763128219619,0.323,94806.0,94798.0,0.58745068]
[1763128219821,0.323,94806.0,94790.0,0.0004]
[1763128220057,0.04883,94797.0,94790.0,0.0004]
[1763128220268,0.5536465,94797.0,94790.0,0.0004]
[1763128221446,0.4894465,94797.0,94790.0,0.0004]
[1763128221911,0.4874465,94797.0,94790.0,0.0004]
[1763128222123,0.1156165,94797.0,94790.0,0.0004]
[1763128222324,0.1156165,94797.0,94796.0,51.97802912]
[1763128222325,0.002,94797.0,94796.0,51.97802912]
[1763128222529,0.11631058,94797.0,94796.0,51.95502912]
[1763128222877,0.004,94797.0,94796.0,51.95502912]
[1763128223089,0.08660398,94797.0,94796.0,51.99844786]
[1763128223249,0.01,94820.0,94796.0,51.95502912]
[1763128223484,0.01,94820.0,94810.0,0.58745068]
[1763128223485,0.11954228,94819.0,94810.0,0.58745068]
[1763128223896,0.11954228,94819.0,94816.0,0.2109331]
[1763128224122,0.11954228,94819.0,94811.0,0.04341874]
[1763128224292,0.11954228,94819.0,94812.0,0.21094376]
[1763128224497,0.11954228,94819.0,94813.0,0.29512092]
[1763128224716,0.11954228,94819.0,94816.0,0.21093486]
[1763128224919,0.11954228,94819.0,94817.0,0.21093117]
[1763128225664,0.01,94830.0,94820.0,0.01054629]
[1763128225976,0.10861712,94829.0,94821.0,0.04341874]
[1763128226155,0.10861712,94828.0,94827.0,0.21090877]
[1763128226299,0.01,94830.0,94827.0,0.21090877]
[1763128226300,0.01,94830.0,94829.0,0.21090594]
[1763128226523,0.11861712,94830.0,94829.0,0.21090594]
[1763128227030,0.07692607,94830.0,94829.0,0.25432468]
[1763128227271,0.01,94850.0,94849.0,0.21086147]
[1763128227450,0.00013684,94850.0,94849.0,0.23194762]
[1763128227851,0.05711658,94850.0,94849.0,0.23194762]
[1763128228051,0.04883,94895.0,94850.0,0.04341874]
[1763128228052,0.01,94870.0,94850.0,0.04341874]
[1763128228255,0.08867079,94869.0,94860.0,0.58745068]
[1763128228453,0.08867079,94869.0,94861.0,0.05874507]
[1763128228869,0.04883,94900.0,94861.0,0.05874507]
[1763128228870,0.07193495,94868.0,94861.0,0.05874507]
[1763128229073,0.07207185,94868.0,94861.0,0.05874507]
[1763128229275,0.07193495,94867.0,94861.0,0.05874507]
[1763128229618,0.07193495,94867.0,94861.0,0.00274507]
[1763128229832,0.07193495,94867.0,94862.0,0.05901958]
[1763128230389,0.07193495,94867.0,94860.0,0.001]
[1763128230593,0.07193495,94867.0,94846.0,0.21086766]
[1763128230594,0.07193495,94867.0,94857.0,0.58745068]
[1763128230799,0.0001369,94868.0,94857.0,0.58745068]
[1763128230957,0.06942913,94866.0,94862.0,0.001]
[1763128231181,0.06942913,94865.0,94858.0,0.58745068]
[1763128231406,0.06942913,94864.0,94861.0,0.001]
[1763128231808,0.09116,94881.0,94860.0,0.58745068]
[1763128231809,0.06837026,94863.0,94860.0,0.58745068]
[1763128232055,0.01,94860.0,94857.0,0.02729]
[1763128232223,0.01,94860.0,94858.0,0.02729]
[1763128232399,0.06837026,94859.0,94858.0,0.02729]
[1763128232600,0.06837026,94859.0,94858.0,0.09150676]
[1763128232809,0.06837026,94859.0,94858.0,0.02729]
[1763128233781,0.06837026,94859.0,94857.0,0.0274269]
[1763128234292,0.323,94886.0,94857.0,0.0274269]
[1763128234293,0.05839072,94858.0,94857.0,0.0274269]
[1763128234496,0.0157568,94880.0,94857.0,0.0274269]
[1763128234813,0.41416,94886.0,94857.0,0.0274269]
[1763128234814,0.01686062,94885.0,94857.0,0.0274269]
[1763128235021,0.04694,94926.0,94880.0,0.01053962]
[1763128235228,0.0002,94940.0,94907.0,0.58745068]
[1763128235229,0.05862142,94916.0,94907.0,0.58745068]
[1763128235421,0.0002,94940.0,94913.0,0.21071263]
[1763128235422,0.03367646,94915.0,94913.0,0.21071263]
[1763128235663,0.0002,94940.0,94917.0,0.04341874]
[1763128235898,0.0002,94940.0,94914.0,0.36641874]
[1763128235899,0.0002,94940.0,94920.0,1.17490136]
[1763128236085,0.0002,94940.0,94921.0,0.04341874]
[1763128236086,0.05902939,94929.0,94921.0,0.04341874]
[1763128236287,0.05902939,94929.0,94908.0,0.323]
[1763128236288,0.05902939,94928.0,94889.0,0.04341874]
[1763128236532,0.00045634,94929.0,94919.0,0.58745068]
[1763128236746,0.05902939,94927.0,94919.0,0.64619575]
[1763128236958,0.01,94920.0,94919.0,0.64619575]
[1763128237191,0.0287893,94920.0,94919.0,0.05874507]
[1763128237421,0.00045634,94929.0,94919.0,0.05874507]
[1763128237422,0.00045634,94929.0,94920.0,0.04341874]
[1763128237615,0.00045634,94929.0,94928.0,0.04341874]
[1763128237781,0.02079519,94929.0,94928.0,0.04341874]
[1763128237967,0.0102,94940.0,94930.0,0.21068155]
[1763128238170,0.01979519,94939.0,94938.0,0.04341874]
[1763128238371,0.0002,94960.0,94939.0,0.21066158]
[1763128238578,0.0002,94960.0,94938.0,0.40230667]
[1763128238579,0.0002,94960.0,94949.0,0.25405813]
[1763128238782,0.0002,94960.0,94959.0,0.04341874]
[1763128238958,0.0002,94980.0,94960.0,0.58745068]
[1763128239142,0.01033671,94970.0,94960.0,0.58745068]
[1763128239342,0.00710411,94969.0,94960.0,0.58745068]
[1763128239543,0.01033671,94970.0,94960.0,0.58745068]
[1763128240387,0.01033671,94970.0,94960.0,0.63187954]
[1763128241151,0.00033671,94970.0,94960.0,0.63187954]
[1763128241356,0.01033671,94970.0,94960.0,0.63187954]
[1763128241570,0.01033671,94970.0,94960.0,0.58745068]
[1763128241742,0.01138376,94970.0,94960.0,0.58745068]
[1763128241899,0.00138376,94970.0,94964.0,0.210604]
[1763128242100,0.01138376,94970.0,94960.0,0.79806359]
[1763128242301,0.00138376,94970.0,94961.0,0.10086801]
[1763128242505,0.00138376,94970.0,94965.0,0.21060305]
[1763128242728,0.00138376,94970.0,94962.0,0.25402864]
[1763128242929,0.00138376,94970.0,94962.0,0.04341874]
[1763128243274,0.01138376,94970.0,94960.0,0.58745068]
[1763128243760,0.01138376,94970.0,94960.0,0.64719575]
[1763128244165,0.01138376,94970.0,94960.0,0.64619575]
[1763128244374,0.01138376,94970.0,94967.0,0.04341874]
[1763128244375,0.00138376,94970.0,94967.0,0.04341874]
[1763128244548,0.00138376,94970.0,94960.0,0.64619575]
[1763128244549,0.01138376,94970.0,94960.0,0.64619575]
[1763128244761,0.01138376,94970.0,94940.0,0.09757153]
[1763128244762,0.01138376,94970.0,94941.0,0.21065538]
[1763128244958,0.01138376,94970.0,94960.0,0.58845068]
[1763128245361,0.01,94960.0,94950.0,0.58745068]
[1763128245574,0.00138376,94970.0,94940.0,0.07703858]
[1763128245575,0.01,94950.0,94940.0,0.58745068]
[1763128245798,0.01,94950.0,94920.0,0.01053518]
[1763128246015,0.01,94950.0,94940.0,0.58745068]
[1763128246787,0.01,94950.0,94923.0,0.2106967]
[1763128246985,0.01,94950.0,94940.0,0.58745068]
[1763128247233,0.00138376,94970.0,94941.0,0.3395404]
[1763128247381,0.02368252,94980.0,94959.0,0.58745068]
[1763128247382,0.01008376,94980.0,94959.0,0.58745068]
[1763128247582,0.01,94970.0,94960.0,0.58745068]
[1763128248358,0.00988376,94980.0,94961.0,0.00069296]
[1763128248639,0.001,94980.0,94970.0,0.58745068]
[1763128248845,0.0002,94990.0,94970.0,0.58745068]
[1763128249001,0.01,94970.0,94959.0,0.2107535]
[1763128249207,0.01,94970.0,94960.0,0.00069324]
[1763128249622,0.01,94970.0,94961.0,0.323]
[1763128249839,0.01,94970.0,94962.0,0.00069268]
[1763128249840,0.011,94970.0,94962.0,0.00069268]
[1763128249995,0.012,94970.0,94962.0,0.00069268]
[1763128250411,0.00024843,94979.0,94961.0,0.323]
[1763128250652,0.00024843,94979.0,94961.0,0.001]
[1763128250852,0.00024843,94979.0,94969.0,0.58745068]
[1763128251161,0.00024843,94979.0,94970.0,0.00068797]
[1763128251426,0.00024843,94979.0,94969.0,0.58745068]
[1763128251623,0.00024843,94979.0,94970.0,0.00068769]
[1763128252647,0.00024843,94979.0,94969.0,0.58745068]
[1763128252869,0.01,94970.0,94969.0,0.58745068]
[1763128253102,0.00024843,94979.0,94959.0,0.07972221]
[1763128253324,0.00024843,94979.0,94969.0,0.58745068]
[1763128253542,0.00024843,94979.0,94970.0,0.00068797]
[1763128253776,0.00024843,94979.0,94969.0,0.58745068]
[1763128253777,0.00024843,94979.0,94972.0,0.21058785]
[1763128253995,0.00024843,94979.0,94977.0,0.21057688]
[1763128255513,0.00024843,94979.0,94976.0,0.21057904]
[1763128255737,19.03478807,95000.0,94999.0,0.21052853]
[1763128255937,18.84133556,95000.0,94999.0,0.68814727]
[1763128256183,18.77806412,95000.0,94999.0,0.71804379]
[1763128256404,18.14948342,95000.0,94999.0,0.71804379]
[1763128256621,17.64280536,95000.0,94999.0,0.71804379]
[1763128256842,17.61116964,95000.0,94999.0,0.71804379]
[1763128257059,17.5796706,95000.0,94999.0,0.71804379]
[1763128257265,17.54803488,95000.0,94999.0,0.71804379]
[1763128257463,17.54803488,95000.0,94999.0,0.72104379]
[1763128257464,16.96044462,95000.0,94999.0,0.72104379]
[1763128257665,14.9034786,95000.0,94999.0,0.72104379]
[1763128257882,14.38833854,95000.0,94999.0,0.72104379]
[1763128258116,13.8062376,95000.0,94999.0,0.72104379]
[1763128258345,13.54637346,95000.0,94999.0,1.02772357]
[1763128258584,12.74548227,95000.0,94999.0,1.02772357]
[1763128258797,12.25183961,95000.0,94999.0,1.02772357]
[1763128259020,12.25183961,95000.0,94999.0,0.69414727]
[1763128259021,12.22022339,95000.0,94999.0,0.69414727]
[1763128259236,12.18860717,95000.0,94999.0,0.69114727]
[1763128259465,12.15699095,95000.0,94999.0,0.32472853]
[1763128259726,12.12537473,95000.0,94999.0,0.21352853]